{"text_format":"1","workbook":"xlsx","n_sheets":12,"sheets":["IMP","stu","pqr","mno","jkl","ghi","def","Risk Matrix","abc","KWT","cpw","Sheet1"],"not_rendered":{"charts":0,"images":0,"macros":1,"external_links":0,"defined_names":4,"comments":0,"pivot_tables":0},"unopened":[],"bounds":{"document_bytes":16777216,"sheet_cells":100000,"rows_first":2000,"rows_last":500,"rows_between":2000,"halvings":0,"cell_chars":16384,"cell_head_chars":4096},"cells_cut":0,"cells_raw":0,"read":"whole","date_system":"1900"}

{"sheet":"IMP","index":0,"n_rows":1,"n_cols":1,"rows_kept":1,"cut":false,"hidden":true,"merged":[]}
["asd"]

{"sheet":"stu","index":1,"n_rows":0,"n_cols":0,"rows_kept":0,"cut":false,"hidden":true,"merged":[]}

{"sheet":"pqr","index":2,"n_rows":0,"n_cols":0,"rows_kept":0,"cut":false,"hidden":true,"merged":[]}

{"sheet":"mno","index":3,"n_rows":0,"n_cols":0,"rows_kept":0,"cut":false,"hidden":true,"merged":[]}

{"sheet":"jkl","index":4,"n_rows":0,"n_cols":0,"rows_kept":0,"cut":false,"hidden":true,"merged":[]}

{"sheet":"ghi","index":5,"n_rows":0,"n_cols":0,"rows_kept":0,"cut":false,"hidden":true,"merged":[]}

{"sheet":"def","index":6,"n_rows":0,"n_cols":0,"rows_kept":0,"cut":false,"hidden":true,"merged":[]}

{"sheet":"Risk Matrix","index":7,"n_rows":167,"n_cols":48,"rows_kept":167,"cut":false,"hidden":false,"merged":[[13,14,13,18],[6,2,6,4],[5,2,5,4],[0,2,0,4],[2,2,2,4],[3,2,3,4],[4,2,4,4],[10,2,10,4],[8,2,8,4],[9,2,9,4],[13,2,13,4],[11,2,11,4],[1,2,1,4],[16,11,20,11],[12,2,12,4],[14,2,14,4],[15,2,15,4],[16,2,16,4],[17,2,17,4],[13,11,15,13],[18,2,18,4],[26,2,26,4],[27,2,27,4],[28,2,28,4],[29,2,29,4],[0,0,30,0],[30,2,30,4],[19,2,19,4],[20,2,20,4],[21,2,21,4],[22,2,22,4],[23,2,23,4],[24,2,24,4],[25,2,25,4],[7,2,7,4]]}
["Risk Matrix","#","Risk Description",null,null,"Probability","Severity","Score","Class","Strategy"]
[null,1,null,null,null,null,null,{"$f":"IF(F2=\"\",\"\",F2*G2)","v":""},{"$f":"IF(AND(H2<=25,H2>=15),\"AA\",IF(AND(H2<=12,H2>=9),\"A\",IF(AND(H2>=3,H2<=8),\"B\",IF(AND(H2>=1,H2<=2),\"C\",\" \"))))","v":" "},null,null,null,null,null,null,null,null,null,null,null,null,{"$f":"B2","v":1},{"$f":"B2","v":1},null,{"$f":"IF(I2=\"C\",\"CC\",I2)","v":" "},null,null,1,null,null,null,null,null,null,null,null,{"$f":"RIGHT(#REF!, LEN(#REF! ) - FIND( \":\",#REF! ) )","v":{"$error":"#REF!"}},null,null,null,null,null,null,null,null,null,"Gas leackage ","Fatalities"]
[null,2,null,null,null,null,null,{"$f":"IF(F3=\"\",\"\",F3*G3)","v":""},{"$f":"IF(AND(H3<=25,H3>=15),\"AA\",IF(AND(H3<=12,H3>=9),\"A\",IF(AND(H3>=3,H3<=8),\"B\",IF(AND(H3>=1,H3<=2),\"C\",\" \"))))","v":" "},null,null,null,null,null,null,null,null,null,null,null,null,{"$f":"B3","v":2},{"$f":"B3","v":2},null,{"$f":"IF(I3=\"C\",\"CC\",I3)","v":" "},null,null,2,null,null,null,null,null,null,null,null,{"$f":"RIGHT(#REF!, LEN(#REF! ) - FIND( \":\",#REF! ) )","v":{"$error":"#REF!"}}]
[null,3,null,null,null,null,null,{"$f":"IF(F4=\"\",\"\",F4*G4)","v":""},{"$f":"IF(AND(H4<=25,H4>=15),\"AA\",IF(AND(H4<=12,H4>=9),\"A\",IF(AND(H4>=3,H4<=8),\"B\",IF(AND(H4>=1,H4<=2),\"C\",\" \"))))","v":" "},null,null,null,null,null,null,null,null,null,null,null,null,3,3,null,{"$f":"IF(I4=\"C\",\"CC\",I4)","v":" "},null,null,3,null,null,null,null,null,null,null,null,{"$f":"RIGHT(#REF!, LEN(#REF! ) - FIND( \":\",#REF! ) )","v":{"$error":"#REF!"}}]
[null,4,null,null,null,null,null,""," ",null,null,null,null,null,null,null,null,null,null,null,null,4,4,null,{"$f":"IF(I5=\"C\",\"CC\",I5)","v":" "},null,null,4,null,null,null,null,null,null,null,null,{"$f":"RIGHT(#REF!, LEN(#REF! ) - FIND( \":\",#REF! ) )","v":{"$error":"#REF!"}}]
[null,5,null,null,null,null,null,""," ",null,null,null,null,null,null,null,null,null,null,null,null,5,5,null,{"$f":"IF(I6=\"C\",\"CC\",I6)","v":" "},null,null,5,null,null,null,null,null,null,null,null,{"$f":"RIGHT(#REF!, LEN(#REF! ) - FIND( \":\",#REF! ) )","v":{"$error":"#REF!"}}]
[null,6,null,null,null,null,null,""," ",null,null,null,null,null,null,null,null,null,null,null,null,6,6,null,{"$f":"IF(I7=\"C\",\"CC\",I7)","v":" "},null,null,6,null,null,null,null,null,null,null,null,{"$f":"RIGHT(#REF!, LEN(#REF! ) - FIND( \":\",#REF! ) )","v":{"$error":"#REF!"}}]
[null,7,null,null,null,null,null,""," ",null,null,null,null,null,null,null,null,null,null,null,null,7,7,null,{"$f":"IF(I8=\"C\",\"CC\",I8)","v":" "},null,null,7,null,null,null,null,null,null,null,null,{"$f":"RIGHT(#REF!, LEN(#REF! ) - FIND( \":\",#REF! ) )","v":{"$error":"#REF!"}}]
[null,8,null,null,null,null,null,{"$f":"IF(F9=\"\",\"\",F9*G9)","v":""},{"$f":"IF(AND(H9<=25,H9>=15),\"AA\",IF(AND(H9<=12,H9>=9),\"A\",IF(AND(H9>=3,H9<=8),\"B\",IF(AND(H9>=1,H9<=2),\"C\",\" \"))))","v":" "},null,null,null,null,null,null,null,null,null,null,null,null,8,8,null,{"$f":"IF(I9=\"C\",\"CC\",I9)","v":" "},null,null,8,null,null,null,null,null,null,null,null,{"$f":"RIGHT(#REF!, LEN(#REF! ) - FIND( \":\",#REF! ) )","v":{"$error":"#REF!"}}]
[null,9,null,null,null,null,null,"",{"$f":"IF(AND(H10<=25,H10>=15),\"AA\",IF(AND(H10<=12,H10>=9),\"A\",IF(AND(H10>=3,H10<=8),\"B\",IF(AND(H10>=1,H10<=2),\"C\",\" \"))))","v":" "},null,null,null,null,null,null,null,null,null,null,null,null,9,9,null,{"$f":"IF(I10=\"C\",\"CC\",I10)","v":" "},null,null,9,null,null,null,null,null,null,null,null,{"$f":"RIGHT(#REF!, LEN(#REF! ) - FIND( \":\",#REF! ) )","v":{"$error":"#REF!"}}]
[null,10,null,null,null,null,null,""," ",null,null,null,null,null,null,null,null,null,null,null,null,10,10,null,{"$f":"IF(I11=\"C\",\"CC\",I11)","v":" "},null,null,10,null,null,null,null,null,null,null,null,{"$f":"RIGHT(#REF!, LEN(#REF! ) - FIND( \":\",#REF! ) )","v":{"$error":"#REF!"}}]
[null,11,null,null,null,null,null,{"$f":"IF(F12=\"\",\"\",F12*G12)","v":""},{"$f":"IF(AND(H12<=25,H12>=15),\"AA\",IF(AND(H12<=12,H12>=9),\"A\",IF(AND(H12>=3,H12<=8),\"B\",IF(AND(H12>=1,H12<=2),\"C\",\" \"))))","v":" "},null,null,null,null,null,null,null,null,null,null,null,null,11,11,null,{"$f":"IF(I12=\"C\",\"CC\",I12)","v":" "},null,null,11,null,null,null,null,null,null,null,null,{"$f":"RIGHT(#REF!, LEN(#REF! ) - FIND( \":\",#REF! ) )","v":{"$error":"#REF!"}}]
[null,12,null,null,null,null,null,""," ",null,null,null,null,null,null,null,null,null,null,null,null,12,12,null,{"$f":"IF(I13=\"C\",\"CC\",I13)","v":" "},null,null,12,null,null,null,null,null,null,null,null,{"$f":"RIGHT(#REF!, LEN(#REF! ) - FIND( \":\",#REF! ) )","v":{"$error":"#REF!"}}]
[null,13,null,null,null,null,null,""," ",null,null,"Risk Assessment Matrix",null,null,"Severity",null,null,null,null,null,null,13,13,null,{"$f":"IF(I14=\"C\",\"CC\",I14)","v":" "},null,null,13,null,null,null,null,null,null,null,null,{"$f":"RIGHT(#REF!, LEN(#REF! ) - FIND( \":\",#REF! ) )","v":{"$error":"#REF!"}}]
[null,14,null,null,null,null,null,""," ",null,null,null,null,null,"VERY LOW","LOW","MEDIUM","HIGH","VERY HIGH",null,null,14,14,null,{"$f":"IF(I15=\"C\",\"CC\",I15)","v":" "},null,null,14,null,null,null,null,null,null,null,null,{"$f":"RIGHT(#REF!, LEN(#REF! ) - FIND( \":\",#REF! ) )","v":{"$error":"#REF!"}}]
[null,15,null,null,null,null,null,""," ",null,null,null,null,null,1,2,3,4,5,null,null,15,15,null,{"$f":"IF(I16=\"C\",\"CC\",I16)","v":" "},null,null,15,null,null,null,null,null,null,null,null,{"$f":"RIGHT(#REF!, LEN(#REF! ) - FIND( \":\",#REF! ) )","v":{"$error":"#REF!"}}]
[null,16,null,null,null,null,null,""," ",null,null,"Probability of Occurence","VERY HIGH",5,5,10,15,20,25,null,null,16,16,null,{"$f":"IF(I17=\"C\",\"CC\",I17)","v":" "},null,null,16,null,null,null,null,null,null,null,null,{"$f":"RIGHT(#REF!, LEN(#REF! ) - FIND( \":\",#REF! ) )","v":{"$error":"#REF!"}}]
[null,17,null,null,null,null,null,""," ",null,null,null,"HIGH",4,4,8,12,16,20,null,null,17,17,null,{"$f":"IF(I18=\"C\",\"CC\",I18)","v":" "},null,null,17,null,null,null,null,null,null,null,null,{"$f":"RIGHT(#REF!, LEN(#REF! ) - FIND( \":\",#REF! ) )","v":{"$error":"#REF!"}}]
[null,18,null,null,null,null,null,""," ",null,null,null,"MEDIUM",3,3,6,9,12,15,null,null,18,18,null,{"$f":"IF(I19=\"C\",\"CC\",I19)","v":" "},null,null,18,null,null,null,null,null,null,null,null,{"$f":"RIGHT(#REF!, LEN(#REF! ) - FIND( \":\",#REF! ) )","v":{"$error":"#REF!"}}]
[null,19,null,null,null,null,null,""," ",null,null,null,"LOW",2,2,4,6,8,12,null,null,19,19,null,{"$f":"IF(I20=\"C\",\"CC\",I20)","v":" "},null,null,19,null,null,null,null,null,null,null,null,{"$f":"RIGHT(#REF!, LEN(#REF! ) - FIND( \":\",#REF! ) )","v":{"$error":"#REF!"}}]
[null,20,null,null,null,null,null,""," ",null,null,null,"VERY LOW",1,1,2,3,4,5,null,null,20,20,null,{"$f":"IF(I21=\"C\",\"CC\",I21)","v":" "},null,null,20,null,null,null,null,null,null,null,null,{"$f":"RIGHT(#REF!, LEN(#REF! ) - FIND( \":\",#REF! ) )","v":{"$error":"#REF!"}}]
[null,21,null,null,null,null,null,""," ",null,null,null,null,null,null,null,null,null,null,null,null,21,null,null,{"$f":"IF(I22=\"C\",\"CC\",I22)","v":" "},null,null,21,null,null,null,null,null,null,null,null,{"$f":"RIGHT(#REF!, LEN(#REF! ) - FIND( \":\",#REF! ) )","v":{"$error":"#REF!"}}]
[null,22,null,null,null,null,null,""," ",null,null,null,null,null,null,null,null,null,null,null,null,22,null,null,{"$f":"IF(I23=\"C\",\"CC\",I23)","v":" "},null,null,22,null,null,null,null,null,null,null,null,{"$f":"RIGHT(#REF!, LEN(#REF! ) - FIND( \":\",#REF! ) )","v":{"$error":"#REF!"}}]
[null,23,null,null,null,null,null,""," ",null,null,null,null,null,null,null,null,null,null,null,null,23,null,null,{"$f":"IF(I24=\"C\",\"CC\",I24)","v":" "},null,null,23,null,null,null,null,null,null,null,null,{"$f":"RIGHT(#REF!, LEN(#REF! ) - FIND( \":\",#REF! ) )","v":{"$error":"#REF!"}}]
[null,24,null,null,null,null,null,""," ",null,null,null,null,null,null,null,null,null,null,null,null,24,null,null,{"$f":"IF(I25=\"C\",\"CC\",I25)","v":" "},null,null,24,null,null,null,null,null,null,null,null,{"$f":"RIGHT(#REF!, LEN(#REF! ) - FIND( \":\",#REF! ) )","v":{"$error":"#REF!"}}]
[null,25,null,null,null,null,null,""," ",null,null,null,null,null,null,null,null,null,null,null,null,25,null,null,{"$f":"IF(I26=\"C\",\"CC\",I26)","v":" "},null,null,25,null,null,null,null,null,null,null,null,{"$f":"RIGHT(#REF!, LEN(#REF! ) - FIND( \":\",#REF! ) )","v":{"$error":"#REF!"}}]
[null,26,null,null,null,null,null,""," ",null,null,null,null,null,null,null,null,null,null,null,null,26,null,null,{"$f":"IF(I27=\"C\",\"CC\",I27)","v":" "},null,null,26,null,null,null,null,null,null,null,null,{"$f":"RIGHT(#REF!, LEN(#REF! ) - FIND( \":\",#REF! ) )","v":{"$error":"#REF!"}}]
[null,27,null,null,null,null,null,""," ",null,null,null,null,null,null,null,null,null,null,null,null,27,null,null,{"$f":"IF(I28=\"C\",\"CC\",I28)","v":" "},null,null,27,null,null,null,null,null,null,null,null,{"$f":"RIGHT(#REF!, LEN(#REF! ) - FIND( \":\",#REF! ) )","v":{"$error":"#REF!"}}]
[null,28,null,null,null,null,null,""," ",null,null,null,null,null,null,null,null,null,null,null,null,28,null,null,{"$f":"IF(I29=\"C\",\"CC\",I29)","v":" "},null,null,28,null,null,null,null,null,null,null,null,{"$f":"RIGHT(#REF!, LEN(#REF! ) - FIND( \":\",#REF! ) )","v":{"$error":"#REF!"}}]
[null,29,null,null,null,null,null,""," ",null,null,null,null,null,null,null,null,null,null,null,null,29,null,null,{"$f":"IF(I30=\"C\",\"CC\",I30)","v":" "},null,null,29,null,null,null,null,null,null,null,null,{"$f":"RIGHT(#REF!, LEN(#REF! ) - FIND( \":\",#REF! ) )","v":{"$error":"#REF!"}}]
[null,30,null,null,null,null,null,""," ",null,null,null,null,null,null,null,null,null,null,null,null,30,null,null,{"$f":"IF(I31=\"C\",\"CC\",I31)","v":" "},null,null,30,null,null,null,null,null,null,null,null,{"$f":"RIGHT(#REF!, LEN(#REF! ) - FIND( \":\",#REF! ) )","v":{"$error":"#REF!"}}]
[]
["Designed by Ayman Nagi ©"]
[]
[]
[]
[]
[]
[]
[]
[]
[]
[]
[]
[]
[]
[]
[]
[]
[]
[]
[]
[]
[]
[]
[]
[]
[]
[]
[]
[]
[]
[]
[]
[]
[]
[]
[]
[]
[]
[]
[]
[]
[]
[]
[]
[]
[]
[]
[]
[]
[]
[]
[]
[]
[]
[]
[]
[]
[]
[]
[]
[]
[]
[]
[]
[]
[]
[]
[]
[]
[]
[]
[]
[]
[]
[]
[]
[]
[]
[]
[]
[]
[]
[]
[]
[]
[]
[]
[]
[]
[]
[]
[]
[]
[]
[]
[]
[]
[]
[]
[]
[]
[]
[]
[]
[]
[]
[]
[]
[]
[]
[]
[]
[]
[]
[]
[]
[]
[]
[]
[null,null,null,null,null,1]
[null,null,null,null,null,2]
[null,null,null,null,null,3]
[null,null,null,null,null,4]
[null,null,null,null,null,5]
[]
[]
[]
[]
[]
[]
[]
[null,null,null,null,null,null,null,null,null,null,null,"AA","A","B","C",null,"AA","A","B","CC"]
[null,null,null,null,null,null,null,null,null,null,null,"Prevent","Prevent","Prevent","Mitigate",null,"Prevent","Prevent","Prevent","Mitigate"]
[null,null,null,null,null,null,null,null,null,null,null,null,"Mitigate","Mitigate","Accept",null,null,"Mitigate","Mitigate","Accept"]
[null,null,null,null,null,null,null,null,null,null,null,null,null,"Accept",null,null,null,null,"Accept"]

{"sheet":"abc","index":8,"n_rows":1,"n_cols":6,"rows_kept":1,"cut":false,"hidden":true,"merged":[]}
["Risk 2","Risk 123(x)","Risk 3","Risk 4","Risk 5","Risk 6"]

{"sheet":"KWT","index":9,"n_rows":1,"n_cols":53,"rows_kept":1,"cut":false,"hidden":true,"merged":[]}
[null,null,null,null,null,null,null,null,null,null,null,null,null,null,null,null,null,null,null,null,null,null,null,null,null,null,null,null,null,null,null,null,null,null,null,null,null,null,null,null,null,null,null,null,null,null,null,null,null,null,null,null,"1234"]

{"sheet":"cpw","index":10,"n_rows":1,"n_cols":1,"rows_kept":1,"cut":false,"hidden":true,"merged":[]}
[1234]

{"sheet":"Sheet1","index":11,"n_rows":0,"n_cols":0,"rows_kept":0,"cut":false,"hidden":true,"merged":[]}